bitfinex/quotes_SOLUSD_20250811
["timestamp","ask_amount","ask_price","bid_price","bid_amount"]
[1754881003060,0.72,185.75,185.72,0.03]
[1754881003554,0.66,185.74,185.72,0.03]
[1754881004182,6.04387878,185.74,185.72,0.03]
[1754881004478,10.82813809,185.74,185.72,0.03]
[1754881004683,10.16813809,185.74,185.72,0.03]
[1754881004875,0.66,185.73,185.72,0.03]
[1754881009081,5.44425931,185.73,185.72,0.03]
[1754881009472,8.80918305,185.73,185.72,0.03]
[1754881009672,9.46918305,185.73,185.72,0.03]
[1754881010782,9.47055448,185.73,185.72,0.03]
[1754881011363,29.96092985,185.73,185.7,0.03]
[1754881011667,4.78425931,185.71,185.7,0.03]
[1754881011868,8.81055448,185.71,185.7,0.03]
[1754881012067,9.47055448,185.71,185.7,0.03]
[1754881012388,14.85529412,185.71,185.7,0.03]
[1754881012589,10.07103481,185.71,185.7,0.03]
[1754881012884,14.85529412,185.71,185.7,0.03]
[1754881016369,52.91529412,185.71,185.7,0.03]
[1754881019292,68.02150969,185.71,185.7,0.03]
[1754881021475,68.02150969,185.71,185.69,0.03]
[1754881021476,15.10621557,185.7,185.69,0.03]
[1754881021694,24.61677005,185.7,185.69,0.03]
[1754881023194,30.00179966,185.7,185.69,0.03]
[1754881024010,32.15900666,185.7,185.69,0.03]
[1754881024778,11.66776148,185.7,185.69,0.03]
[1754881025092,14.89558409,185.7,185.69,0.03]
[1754881025397,9.51055448,185.7,185.69,0.03]
[1754881025799,49.72752848,185.7,185.69,0.03]
[1754881026099,52.95558409,185.7,185.69,0.03]
[1754881026316,4.02629517,185.7,185.69,0.03]
[1754881026607,38.1766257,185.72,185.69,0.03]
[1754881026818,4.02336165,185.71,185.69,0.03]
[1754881026978,8.80762096,185.71,185.69,0.03]
[1754881027184,9.50772123,185.7,185.69,0.03]
[1754881028999,4.72346192,185.7,185.69,0.03]
[1754881029190,4.72368961,185.7,185.69,0.03]
[1754881029886,9.50794892,185.7,185.69,0.03]
[1754881030087,14.89297853,185.7,185.69,0.03]
[1754881030486,9.50794892,185.7,185.69,0.03]
[1754881030911,14.89297853,185.7,185.69,0.03]
[1754881032197,8.80794892,185.7,185.69,0.03]
[1754881032611,4.02368961,185.7,185.69,0.03]
[1754881033607,4.02368961,185.7,185.69,4.85425931]
[1754881033822,0.06,185.73,185.69,4.85425931]
[1754881034028,4.02325708,185.72,185.69,4.85425931]
[1754881035095,4.02325708,185.72,185.69,0.03]
[1754881035294,4.02325708,185.72,185.71,4.78425931]
[1754881035497,0.06,185.73,185.71,4.82425931]
[1754881036294,0.06,185.73,185.7,4.78425931]
[1754881036495,4.02358537,185.72,185.69,4.81425931]
[1754881036710,4.02358537,185.71,185.69,0.03]
[1754881036920,4.72358537,185.71,185.69,0.03]
[1754881037220,4.02358537,185.7,185.69,0.03]
[1754881041914,0.76,185.73,185.69,0.03]
[1754881042112,4.72477468,185.72,185.69,0.03]
[1754881042415,4.02477468,185.71,185.69,0.03]
[1754881043702,0.7,185.72,185.69,0.03]
[1754881044403,5.44418635,185.73,185.69,0.03]
[1754881044612,0.7,185.71,185.69,0.03]
[1754881045006,5.48425931,185.71,185.69,0.03]
[1754881045398,0.7,185.7,185.69,0.03]
[1754881045810,4.72578826,185.7,185.69,0.03]
[1754881046202,9.51004757,185.7,185.69,0.03]
[1754881046615,14.89507718,185.7,185.69,0.03]
[1754881049219,4.72578826,185.7,185.69,0.03]
[1754881049529,14.89507718,185.7,185.69,0.03]
[1754881049711,52.93507718,185.7,185.69,0.03]
[1754881052619,68.04129275,185.7,185.69,0.03]
[1754881052932,15.10621557,185.69,185.67,0.03]
[1754881053109,39.59430688,185.68,185.66,0.03]
[1754881053308,46.85004757,185.67,185.66,0.03]
[1754881053611,47.54004757,185.67,185.66,0.03]
[1754881053828,47.54341898,185.67,185.66,0.03]
[1754881055013,52.92931869,185.67,185.66,0.03]
[1754881055219,68.03553426,185.67,185.66,1e-08]
[1754881056013,64.00637459,185.67,185.66,1e-08]
[1754881059922,48.90015902,185.67,185.66,1e-08]
[1754881060128,38.04,185.67,185.66,1e-08]
[1754881061222,38.04,185.68,185.66,1e-08]
[1754881062144,10.85930894,185.7,185.66,1e-08]
[1754881062145,4.78425931,185.69,185.66,1e-08]
[1754881062344,42.82425931,185.68,185.66,1e-08]
[1754881062849,43.51425931,185.68,185.66,1e-08]
[1754881065458,5.47425931,185.67,185.66,1e-08]
[1754881065619,15.10621557,185.66,185.65,0.03]
[1754881065828,58.62047488,185.66,185.65,0.03]
[1754881066042,57.86196982,185.66,185.65,0.03]
[1754881066243,88.64622913,185.66,185.65,0.03]
[1754881066437,88.64622913,185.66,185.64,0.03]
[1754881066743,24.60622913,185.65,185.64,0.03]
[1754881067443,29.99270906,185.65,185.64,0.03]
[1754881067646,15.10621557,185.64,185.63,0.03]
[1754881067824,62.64622913,185.64,185.63,0.03]
[1754881068027,62.77722252,185.64,185.63,0.03]
[1754881069539,68.16399261,185.64,185.63,0.03]
[1754881070421,70.32201361,185.64,185.63,0.03]
[1754881071446,100.32201361,185.64,185.63,0.03]
[1754881073340,126.32201361,185.64,185.63,0.03]
[1754881073869,100.32201361,185.64,185.62,0.03]
[1754881074172,24.60622913,185.63,185.62,0.03]
[1754881074328,20.58047488,185.63,185.62,0.03]
[1754881074529,26.75419706,185.63,185.62,0.03]
[1754881075131,62.14125734,185.63,185.62,0.03]
[1754881075347,62.14125734,185.63,185.56,0.03]
[1754881075658,47.52984349,185.62,185.56,0.03]
[1754881075842,41.10621557,185.61,185.56,0.03]
[1754881076067,49.90605906,185.61,185.56,0.03]
[1754881076249,50.59605906,185.61,185.56,0.03]
[1754881076644,52.75442906,185.61,185.56,0.03]
[1754881077136,58.14206981,185.61,185.56,0.03]
[1754881077456,67.59558751,185.61,185.56,0.03]
[1754881077637,4.78425931,185.57,185.56,0.03]
[1754881077835,42.82425931,185.57,185.56,0.03]
[1754881078030,43.51425931,185.57,185.56,0.03]
[1754881079255,48.90306137,185.57,185.56,0.03]
[1754881080167,52.91403595,185.57,185.56,0.03]
[1754881081664,72.80451083,185.57,185.56,0.03]
[1754881081842,72.80451083,185.57,185.54,0.03]
[1754881081843,26.0,185.55,185.54,0.03]
[1754881082048,87.94144946,185.55,185.54,0.03]
[1754881082251,88.62144946,185.55,185.54,0.03]
[1754881083444,94.01083237,185.55,185.54,0.03]
[1754881084737,40.1846168,185.55,185.54,0.03]
[1754881084961,74.21364222,185.55,185.54,0.03]
[1754881088146,69.42938291,185.55,185.54,0.03]
[1754881088353,36.17364222,185.55,185.54,0.03]
[1754881088558,74.23364222,185.55,185.54,0.03]
[1754881088765,36.17364222,185.55,185.54,0.03]
[1754881088967,74.23364222,185.55,185.54,0.03]
[1754881089166,38.06,185.55,185.54,0.13]
[1754881089471,38.06,185.55,185.54,0.03]
[1754881090358,42.84425931,185.55,185.54,0.03]
[1754881090967,38.06,185.56,185.54,0.13]
[1754881091148,42.84425931,185.56,185.54,0.13]
[1754881091348,42.84425931,185.56,185.54,0.03]
[1754881091550,4.78425931,185.55,185.54,0.03]
[1754881091970,38.06,185.56,185.54,0.03]
[1754881092170,4.78425931,185.55,185.54,0.03]
[1754881092362,38.06,185.56,185.54,0.03]
[1754881092888,4.78425931,185.55,185.54,0.03]
[1754881093060,44.1291329,185.56,185.54,0.03]
[1754881093580,4.78425931,185.55,185.54,0.03]
[1754881093872,5.46425931,185.55,185.54,0.03]
[1754881095464,10.85364222,185.55,185.54,0.03]
[1754881096064,14.85957912,185.55,185.54,0.03]
[1754881096480,10.85364222,185.55,185.54,0.03]
[1754881096865,14.86017987,185.55,185.54,0.03]
[1754881097268,14.86093312,185.55,185.54,0.03]
[1754881097869,10.85364222,185.55,185.54,0.03]
[1754881099191,4.78425931,185.55,185.54,0.03]
[1754881099365,42.84425931,185.55,185.54,0.03]
[1754881099767,48.23364222,185.55,185.54,0.03]
[1754881099967,43.44938291,185.55,185.54,0.03]
[1754881100186,48.23364222,185.55,185.54,0.03]
[1754881100966,42.84425931,185.55,185.54,0.03]
[1754881102366,48.23364222,185.55,185.54,0.03]
[1754881102565,48.91364222,185.55,185.54,0.03]
[1754881102767,48.23364222,185.55,185.54,0.03]
[1754881103169,48.91364222,185.55,185.54,0.03]
[1754881105495,48.23364222,185.55,185.54,0.03]
[1754881106989,48.91364222,185.55,185.54,0.03]
[1754881107889,44.12938291,185.55,185.54,0.03]
[1754881108089,48.91364222,185.55,185.54,0.03]
[1754881108393,52.92897291,185.55,185.54,0.03]
[1754881110001,48.1447136,185.55,185.54,0.03]
[1754881110176,52.92897291,185.55,185.54,0.03]
[1754881110378,47.53959,185.55,185.54,0.03]
[1754881110777,46.85959,185.55,185.54,0.03]
[1754881112180,42.07533069,185.55,185.54,0.03]
[1754881112390,46.85959,185.55,185.54,0.03]
[1754881112875,47.52959,185.55,185.54,0.03]
[1754881113484,52.91897291,185.55,185.54,0.03]
[1754881119808,42.74533069,185.55,185.54,0.03]
[1754881119986,52.91897291,185.55,185.54,0.03]
[1754881120813,52.9396713,185.55,185.54,0.03]
[1754881121608,48.15541199,185.55,185.54,0.03]
[1754881121803,52.9396713,185.55,185.54,0.03]
[1754881122804,57.46246405,185.55,185.54,0.03]
[1754881123685,52.9396713,185.55,185.54,0.03]
[1754881126888,52.94232331,185.55,185.54,0.03]
[1754881128085,78.94232331,185.55,185.54,0.03]
[1754881129326,82.94232331,185.55,185.53,0.2]
[1754881129498,12.67199174,185.54,185.53,0.2]
[1754881129702,17.45625105,185.54,185.53,0.2]
[1754881130529,22.84592443,185.54,185.53,0.2]
[1754881130825,52.84592443,185.54,185.53,0.2]
[1754881131697,46.90203869,185.54,185.53,0.2]
[1754881131897,52.84592443,185.54,185.53,0.2]
[1754881132298,46.90203869,185.54,185.53,0.2]
[1754881132501,52.84592443,185.54,185.53,0.2]
[1754881132718,52.84592443,185.54,185.53,1e-08]
[1754881132919,15.10621557,185.53,185.52,1e-08]
[1754881133125,70.71081597,185.53,185.52,1e-08]
[1754881133299,26.0,185.51,185.5,0.03]
[1754881133505,77.40042011,185.51,185.5,0.03]
[1754881133819,73.5329404,185.51,185.5,0.03]
[1754881134605,78.92348538,185.51,185.5,0.03]
[1754881135007,79.04397973,185.51,185.5,0.03]
[1754881135321,109.04397973,185.51,185.5,0.03]
[1754881135827,111.80422752,185.51,185.5,1e-08]
[1754881136424,116.33716114,185.51,185.5,1e-08]
[1754881137130,111.80422752,185.51,185.48,0.03]
[1754881137426,4.78425931,185.49,185.48,0.03]
[1754881137605,72.8629404,185.49,185.48,0.03]
[1754881137808,78.9240666,185.49,185.48,0.03]
[1754881138509,83.44608326,185.49,185.48,0.03]
[1754881139221,75.40608326,185.49,185.48,0.03]
[1754881139423,113.44608326,185.49,185.48,0.03]
[1754881140104,108.91308949,185.49,185.48,0.03]
[1754881140501,102.55229883,185.49,185.48,1e-08]
[1754881140918,104.71230083,185.49,185.48,1e-08]
[1754881141327,74.71230083,185.49,185.48,1e-08]
[1754881141710,30.78425931,185.47,185.46,0.03]
[1754881141917,78.26367084,185.47,185.46,0.03]
[1754881142107,78.98367084,185.47,185.46,0.03]
[1754881142626,97.24719903,185.47,185.42,0.03]
[1754881142812,4.78425931,185.43,185.42,0.03]
[1754881143018,46.87196329,185.43,185.42,0.03]
[1754881143611,42.08770398,185.43,185.42,0.13]
[1754881143832,52.26483391,185.43,185.42,0.13]
[1754881146332,47.4805746,185.43,185.42,0.13]
[1754881146513,42.08770398,185.43,185.42,0.13]
[1754881146721,47.4805746,185.43,185.42,0.13]
[1754881146922,42.08770398,185.43,185.42,0.13]
[1754881147429,52.26483391,185.43,185.42,0.03]
[1754881147935,52.98483391,185.43,185.42,0.03]
[1754881154335,26.0,185.4,185.34,0.3]
[1754881154639,4.78425931,185.36,185.34,0.3]
[1754881154841,38.06,185.35,185.34,0.3]
[1754881157337,5.39316147,185.42,185.34,10.47969186]
[1754881157540,42.07290251,185.41,185.36,4.78425931]
[1754881157718,42.07290251,185.41,185.37,0.1]
[1754881157719,38.06,185.41,185.37,0.1]
[1754881158435,43.45361707,185.41,185.37,0.1]
[1754881159821,38.06,185.41,185.37,4.88425931]
[1754881160020,38.06,185.41,185.38,0.1]
[1754881161019,38.06,185.41,185.37,4.78425931]
[1754881161224,42.84425931,185.41,185.37,0.03]
[1754881161424,42.84425931,185.41,185.37,0.13]
[1754881161841,43.56425931,185.41,185.37,0.03]
[1754881162219,0.72,185.4,185.37,0.03]
[1754881162544,38.06,185.39,185.37,0.03]
[1754881164048,38.06,185.39,185.37,0.13]
[1754881164223,38.06,185.39,185.37,5.52455366]
[1754881165248,38.06,185.39,185.37,10.30881297]
[1754881165941,38.06,185.39,185.37,5.52455366]
[1754881166755,38.06,185.39,185.37,10.30881297]
[1754881168349,38.04,185.42,185.38,4.88425931]
[1754881168658,4.02231595,185.41,185.39,4.88425931]
[1754881169034,38.04,185.42,185.39,4.88425931]
[1754881169464,38.04,185.42,185.39,5.4938444]
[1754881169756,38.04,185.42,185.39,10.17810371]
[1754881169956,38.73,185.42,185.39,5.3938444]
[1754881170268,0.69,185.41,185.38,10.17853486]
[1754881170448,38.04,185.42,185.38,10.17853486]
[1754881170644,38.73,185.42,185.38,5.39427555]
[1754881170832,38.73,185.42,185.38,10.17853486]
[1754881171434,4.71573824,185.41,185.38,10.17853486]
[1754881171662,0.69,185.41,185.38,10.17853486]
[1754881173751,0.69,185.41,185.39,4.78425931]
[1754881174560,0.69,185.41,185.38,10.17853486]
[1754881174757,38.04,185.42,185.38,10.17853486]
[1754881174962,4.03055282,185.41,185.39,4.78425931]
[1754881175943,4.03055282,185.41,185.39,10.17827878]
[1754881176463,4.03055282,185.41,185.39,4.78425931]
[1754881176668,4.03055282,185.41,185.39,10.17827964]
[1754881177055,4.72055282,185.41,185.39,10.17827964]
[1754881177258,4.03367931,185.4,185.38,5.39428306]
[1754881177574,38.73,185.42,185.39,4.78425931]
[1754881177744,4.03361772,185.41,185.39,4.78425931]
[1754881177941,4.03361772,185.41,185.39,10.17827778]
[1754881178653,4.03361772,185.41,185.39,5.39401847]
[1754881178856,4.03361772,185.4,185.39,10.17827778]
[1754881179052,4.03418057,185.4,185.39,10.17827778]
[1754881180069,38.73,185.42,185.39,10.17827778]
[1754881180476,38.73,185.42,185.38,5.39432516]
[1754881180773,38.73,185.42,185.39,4.78425931]
[1754881181376,0.69,185.41,185.39,4.78425931]
[1754881181758,0.69,185.4,185.39,4.78425931]
[1754881182071,0.69,185.4,185.37,0.03]
[1754881182072,5.47425931,185.4,185.37,0.03]
[1754881182274,3.76501481,185.4,185.37,0.03]
[1754881182571,41.80501481,185.39,185.37,0.03]
[1754881182767,38.73,185.39,185.37,0.03]
[1754881183574,38.71,185.39,185.37,0.03]
[1754881184777,38.02,185.39,185.37,0.03]
[1754881185072,0.69,185.38,185.37,0.03]
[1754881188071,38.02,185.39,185.37,0.03]
[1754881188875,38.71,185.4,185.37,0.03]
[1754881189753,38.71,185.4,185.37,4.83443149]
[1754881189955,0.69,185.39,185.37,4.83443149]
[1754881191156,0.69,185.39,185.37,0.03]
[1754881191558,0.69,185.39,185.37,5.42459387]
[1754881191874,0.69,185.39,185.37,10.22902536]
[1754881192887,38.02,185.4,185.37,10.22902536]
[1754881193251,0.69,185.39,185.37,10.22902536]
[1754881193581,0.69,185.39,185.37,4.83443149]
[1754881194490,0.69,185.39,185.37,10.22903572]
[1754881195779,0.69,185.39,185.37,4.83443149]
[1754881196075,0.69,185.39,185.37,0.03]
[1754881196275,38.02,185.41,185.37,0.03]
[1754881196480,0.69,185.4,185.37,5.42452903]
[1754881196676,0.69,185.39,185.37,10.22896052]
[1754881197378,38.02,185.41,185.37,0.03]
[1754881197577,0.65662981,185.38,185.37,4.83443149]
[1754881199061,0.65662981,185.38,185.37,0.03]
[1754881200988,0.72,185.4,185.37,10.22904766]
[1754881201157,0.72,185.4,185.37,5.42461617]
[1754881201355,0.72,185.39,185.37,5.42461617]
[1754881201996,38.02,185.41,185.38,4.80443149]
[1754881202177,38.74,185.41,185.37,5.56455523]
[1754881202373,0.72,185.4,185.37,5.42455523]
[1754881202700,0.72,185.39,185.37,20.5307708]
[1754881203175,38.74,185.41,185.37,20.5307708]
[1754881203368,0.72,185.4,185.37,25.33520229]
[1754881203770,38.02,185.41,185.37,25.33520229]
[1754881203967,0.72,185.39,185.37,25.33520229]
[1754881204280,0.72,185.39,185.37,23.60475771]
[1754881204486,31.45263558,185.44,185.38,18.32020248]
[1754881204487,0.06,185.44,185.38,18.32020248]
[1754881204692,0.78,185.44,185.41,3.07398691]
[1754881204866,0.72,185.43,185.41,3.07398691]
[1754881205069,0.72,185.42,185.41,15.10621557]
[1754881205665,0.72,185.42,185.4,8.46768009]
[1754881205974,3.79398691,185.42,185.37,5.42458638]
[1754881206211,0.72,185.41,185.37,5.42458638]
[1754881206888,3.79398691,185.41,185.37,0.03]
[1754881207279,0.72,185.4,185.37,0.03]
[1754881207481,3.07398691,185.38,185.37,0.03]
[1754881207994,3.79398691,185.38,185.37,0.03]
[1754881208583,34.33979731,185.38,185.37,0.03]
[1754881208782,37.34924707,185.38,185.37,0.03]
[1754881209391,49.64519471,185.38,185.35,0.03]
[1754881209690,29.07398691,185.36,185.35,0.03]
[1754881209990,67.09398691,185.36,185.35,0.03]
[1754881210195,69.54918453,185.36,185.35,0.03]
[1754881211084,36.92409173,185.36,185.35,0.03]
[1754881211281,74.94409173,185.36,185.35,0.03]
[1754881212098,26.72,185.36,185.35,0.03]
[1754881212298,43.54918453,185.36,185.35,0.03]
[1754881213010,38.74,185.36,185.35,0.03]
[1754881213214,38.02,185.36,185.35,0.03]
[1754881213506,38.02,185.38,185.35,0.03]
[1754881213889,43.54918453,185.4,185.35,0.03]
[1754881214097,38.74,185.4,185.36,4.80918453]
[1754881214405,38.02,185.4,185.37,4.80918453]
[1754881214696,0.72,185.39,185.36,4.80918453]
[1754881214904,43.41393068,185.4,185.36,4.94918453]
[1754881215196,43.41393068,185.4,185.36,0.14]
[1754881215380,44.13393068,185.4,185.36,4.80918453]
[1754881216006,38.74,185.42,185.38,4.80918453]
[1754881216378,38.02,185.42,185.37,4.80918453]
[1754881216681,0.72,185.41,185.35,0.17]
[1754881216987,10.20292778,185.4,185.35,0.03]
[1754881217173,0.72,185.39,185.35,0.03]
[1754881217675,30.80918453,185.36,185.34,0.2]
[1754881218005,48.35836906,185.35,185.31,0.03]
[1754881218298,4.80918453,185.32,185.31,0.03]
[1754881218506,42.80918453,185.32,185.31,0.03]
[1754881218711,43.52918453,185.32,185.23,0.37]
[1754881219001,43.52918453,185.32,185.15,10.0]
[1754881219002,5.39665407,185.3,185.29,10.17130381]
[1754881219208,48.2058386,185.3,185.29,10.17130381]
[1754881219378,38.0,185.3,185.29,10.17130381]
[1754881219576,38.0,185.32,185.29,10.17130381]
[1754881219912,0.72,185.34,185.29,33.86974082]
[1754881220098,5.52918453,185.37,185.31,4.80918453]
[1754881220288,4.80918453,185.38,185.32,5.47918453]
[1754881220492,5.52918453,185.37,185.32,5.47918453]
[1754881220693,38.0,185.39,185.35,15.10621557]
[1754881221010,38.02,185.4,185.37,5.39461617]
[1754881221379,38.02,185.4,185.37,6.06461617]
[1754881221882,0.06,185.44,185.38,5.47918453]
[1754881222081,4.80918453,185.43,185.38,5.47918453]
[1754881222311,0.72,185.42,185.38,0.67]
[1754881222673,0.72,185.42,185.38,5.47918453]
[1754881223077,38.8,185.44,185.38,10.87335611]
[1754881223299,43.60918453,185.44,185.38,10.87335611]
[1754881223495,38.8,185.44,185.39,4.80918453]
[1754881223680,38.08,185.44,185.4,5.47918453]
[1754881224084,38.08,185.44,185.41,0.67]
[1754881224604,38.08,185.44,185.41,5.47918453]
[1754881224802,38.08,185.44,185.41,0.67]
[1754881225099,38.08,185.44,185.39,25.97921446]
[1754881225286,38.8,185.44,185.39,25.97921446]
[1754881225490,38.8,185.44,185.39,20.5854001]
[1754881226004,0.06,185.42,185.39,20.5854001]
[1754881226582,0.72,185.41,185.37,4.80918453]
[1754881226978,0.72,185.4,185.36,5.47918453]
[1754881227197,0.72,185.4,185.35,41.10621557]
[1754881227198,0.72,185.39,185.34,5.50918453]
[1754881227507,0.72,185.38,185.34,0.7]
[1754881227802,0.72,185.37,185.34,0.03]
[1754881228002,4.80918453,185.36,185.34,0.03]
[1754881228202,38.0,185.4,185.34,0.03]
[1754881228405,4.80918453,185.38,185.34,0.03]
[1754881228910,0.72,185.37,185.34,0.03]
[1754881229212,4.80918453,185.35,185.34,0.03]
[1754881229730,5.50918453,185.35,185.34,0.03]
[1754881230002,10.31836906,185.35,185.34,0.03]
[1754881230212,8.27906046,185.35,185.32,0.03]
[1754881230387,7.57906046,185.33,185.32,0.03]
[1754881230782,8.27906046,185.33,185.32,0.03]
[1754881231005,13.67484095,185.33,185.32,0.03]
[1754881231412,38.7,185.33,185.32,0.03]
[1754881231713,51.67484095,185.33,185.32,0.03]
[1754881231918,26.0,185.32,185.29,10.17130381]
[1754881232229,7.57906046,185.3,185.29,10.17130381]
[1754881232592,8.27906046,185.3,185.29,10.17130381]
[1754881233123,13.67571453,185.3,185.29,10.17130381]
[1754881233415,51.69571453,185.3,185.29,10.17130381]
[1754881233628,77.69571453,185.3,185.29,10.17130381]
[1754881233922,77.69571453,185.3,185.29,1e-08]
[1754881234311,7.57906046,185.29,185.28,1e-08]
[1754881234518,8.27906046,185.29,185.28,1e-08]
[1754881235413,13.67600578,185.29,185.28,1e-08]
[1754881236244,8.27906046,185.29,185.28,1e-08]
[1754881236389,0.7,185.29,185.28,1e-08]
[1754881236599,8.27906046,185.29,185.28,1e-08]
[1754881237224,0.7,185.29,185.28,1e-08]
[1754881237408,8.27906046,185.29,185.28,1e-08]
[1754881238442,0.7,185.29,185.28,1e-08]
[1754881238609,8.27906046,185.29,185.28,1e-08]
[1754881239022,64.02,185.3,185.28,1e-08]
[1754881239212,7.57906046,185.29,185.28,1e-08]
[1754881239706,38.02,185.3,185.28,1e-08]
[1754881240111,45.59906046,185.3,185.28,1e-08]
[1754881240319,7.57906046,185.29,185.28,1e-08]
[1754881240608,45.59906046,185.3,185.28,1e-08]
[1754881240807,38.02,185.3,185.28,1e-08]
[1754881241016,38.02,185.3,185.29,0.72]
[1754881241707,38.06,185.32,185.29,13.69600578]
[1754881242026,38.06,185.32,185.3,0.72]
[1754881242621,46.33906046,185.32,185.29,5.39694532]
[1754881243036,38.06,185.32,185.29,5.39694532]
[1754881243420,38.76,185.32,185.29,5.39694532]
[1754881243622,46.33906046,185.32,185.28,5.39723662]
[1754881244133,7.57906046,185.3,185.28,1e-08]
[1754881244440,7.57906046,185.29,185.28,1e-08]
[1754881244634,8.27906046,185.29,185.28,1e-08]
[1754881246025,13.67600578,185.29,185.28,1e-08]
[1754881246238,6.09694532,185.29,185.28,1e-08]
[1754881246427,13.67600578,185.29,185.28,1e-08]
[1754881246735,19.07499078,185.29,185.28,1e-08]
[1754881246945,45.07499078,185.29,185.28,1e-08]
[1754881249546,19.07499078,185.29,185.28,1e-08]
[1754881249721,34.18120635,185.29,185.28,1e-08]
[1754881249927,33.57906046,185.26,185.25,0.03]
[1754881250130,71.63906046,185.26,185.25,0.03]
[1754881250326,72.33906046,185.26,185.25,0.03]
[1754881250728,34.27906046,185.26,185.25,0.03]
[1754881251040,72.33906046,185.26,185.25,0.03]
[1754881251736,77.73687974,185.26,185.25,0.03]
[1754881252938,100.42215577,185.26,185.25,0.03]
[1754881253254,93.02635703,185.26,185.25,0.03]
[1754881253412,7.57906046,185.18,185.14,0.72]
[1754881253615,45.67906046,185.17,185.15,0.72]
[1754881253830,45.69906046,185.17,185.15,0.72]
[1754881254346,38.12,185.17,185.13,0.72]
[1754881254529,38.12,185.17,185.14,0.72]
[1754881255440,38.12,185.17,185.15,0.72]
[1754881255644,38.12,185.17,185.14,12.98031273]
[1754881255819,38.12,185.17,185.16,0.72]
[1754881256432,38.1,185.17,185.16,0.72]
[1754881257346,38.1,185.17,185.14,6.12125227]
[1754881257648,38.1,185.17,185.15,0.72]
[1754881258455,38.1,185.17,185.15,6.12101708]
[1754881258658,38.1,185.17,185.15,0.72]
[1754881259835,38.1,185.17,185.14,5.40125507]
[1754881260238,38.1,185.17,185.12,0.67]
[1754881260445,38.1,185.17,185.13,8.24906046]
[1754881260635,38.1,185.17,185.14,0.67]
[1754881260833,0.9033172,185.23,185.16,7.57906046]
[1754881261038,13.506816,185.24,185.19,7.57906046]
[1754881261230,7.57906046,185.25,185.19,7.57906046]
[1754881261231,38.1,185.23,185.2,0.67]
[1754881261454,38.1,185.23,185.18,8.24906046]
[1754881261749,38.1,185.23,185.19,0.67]
[1754881261932,38.1,185.23,185.19,8.24906046]
[1754881262241,38.1,185.23,185.2,0.67]
[1754881262452,38.1,185.23,185.21,8.24906046]
[1754881262827,38.1,185.23,185.18,5.39997816]
[1754881262828,38.1,185.23,185.2,7.57906046]
[1754881263038,7.57906046,185.21,185.16,6.07073449]
[1754881263224,38.1,185.23,185.13,39.50366704]
[1754881263225,7.57906046,185.19,185.15,5.40095589]
[1754881263442,7.57906046,185.16,185.12,0.67]
[1754881263631,5.40120397,185.15,185.12,0.67]
[1754881263823,7.57906046,185.14,185.1,0.7]
[1754881264028,12.98026443,185.15,185.11,0.67]
[1754881264233,7.57906046,185.13,185.1,0.03]
[1754881264547,7.57906046,185.11,185.1,0.03]
[1754881264928,7.57906046,185.12,185.1,0.03]
[1754881265133,45.67906046,185.13,185.1,0.7]
[1754881265641,12.19683778,185.14,185.11,0.67]
[1754881265845,12.19683778,185.14,185.12,7.57906046]
[1754881266032,12.19683778,185.14,185.13,0.67]
[1754881267647,12.19683778,185.14,185.12,5.40179839]
[1754881267853,12.19683778,185.14,185.1,0.03]
[1754881268040,12.19683778,185.14,185.11,0.67]